[Event "Estonian Chess Championship 2022"]
[Site "Tallinn, Paul Keres Chess House, Estonia"]
[Date "2022.12.10"]
[Round "1.1"]
[White "Kiik, Kalle"]
[Black "Kanep, Meelis"]
[Result "1/2-1/2"]
[TimeControl "90 minutes for first 40 moves and 15 min. for the rest of the game with 30 sec. increment from move 1"]
[WhiteTitle "IM"]
[BlackTitle "GM"]
[WhiteFideId "4500075"]
[BlackFideId "4501047"]
[WhiteElo "2369"]
[BlackElo "2412"]

1. e4 {

[%clk 01:30:48]

} {

[%emt 00:00:11]

} c5 {

[%clk 01:30:49]

} {

[%emt 00:00:12]

} 2. Nf3 {

[%clk 01:30:45]

} {

[%emt 00:00:31]

} d6 {

[%clk 01:25:06]

} {

[%emt 00:06:14]

} 3. Bb5+ {

[%clk 01:29:12]

} {

[%emt 00:02:03]

} Bd7 {

[%clk 01:22:53]

} {

[%emt 00:02:44]

} 4. Bxd7+ {

[%clk 01:29:29]

} {

[%emt 00:00:12]

} Nxd7 {

[%clk 01:22:24]

} {

[%emt 00:01:00]

} 5. O-O {

[%clk 01:28:56]

} {

[%emt 00:01:02]

} Ngf6 {

[%clk 01:21:27]

} {

[%emt 00:01:28]

} 6. d3 {

[%clk 01:29:11]

} {

[%emt 00:00:13]

} g6 {

[%clk 01:20:14]

} {

[%emt 00:01:44]

} 7. c4 {

[%clk 01:27:54]

} {

[%emt 00:01:46]

} Bg7 {

[%clk 01:19:42]

} {

[%emt 00:01:02]

} 8. Nc3 {

[%clk 01:28:17]

} {

[%emt 00:00:07]

} O-O {

[%clk 01:19:13]

} {

[%emt 00:01:00]

} 9. h3 {

[%clk 01:28:27]

} {

[%emt 00:00:19]

} a6 {

[%clk 01:04:50]

} {

[%emt 00:14:54]

} 10. Be3 {

[%clk 01:23:49]

} {

[%emt 00:05:07]

} Rc8 {

[%clk 00:58:50]

} {

[%emt 00:06:31]

} 11. Qd2 {

[%clk 01:21:07]

} {

[%emt 00:03:11]

} Re8 {

[%clk 00:56:18]

} {

[%emt 00:03:03]

} 12. Rab1 {

[%clk 01:17:18]

} {

[%emt 00:04:18]

} e6 {

[%clk 00:53:51]

} {

[%emt 00:02:57]

} 13. Bg5 {

[%clk 01:14:59]

} {

[%emt 00:02:48]

} Qc7 {

[%clk 00:46:47]

} {

[%emt 00:07:36]

} 14. Rfe1 {

[%clk 01:13:25]

} {

[%emt 00:02:02]

} Ne5 {

[%clk 00:39:46]

} {

[%emt 00:07:32]

} 1/2-1/2

[Event "Estonian Chess Championship 2022"]
[Site "Tallinn, Paul Keres Chess House, Estonia"]
[Date "2022.12.10"]
[Round "1.2"]
[White "Volodin, Aleksandr"]
[Black "Medar, Marti"]
[Result "1-0"]
[TimeControl "90 minutes for first 40 moves and 15 min. for the rest of the game with 30 sec. increment from move 1"]
[WhiteTitle "GM"]
[WhiteFideId "4501950"]
[BlackFideId "4501870"]
[WhiteElo "2440"]
[BlackElo "2069"]

1. d4 {

[%clk 01:30:53]

} {

[%emt 00:00:05]

} d6 {

[%clk 01:30:46]

} {

[%emt 00:00:14]

} 2. c4 {

[%clk 01:29:51]

} {

[%emt 00:01:33]

} e5 {

[%clk 01:29:14]

} {

[%emt 00:02:02]

} 3. Nc3 {

[%clk 01:29:37]

} {

[%emt 00:00:44]

} Nd7 {

[%clk 01:19:14]

} {

[%emt 00:10:29]

} 4. Nf3 {

[%clk 01:29:50]

} {

[%emt 00:00:17]

} Ngf6 {

[%clk 01:19:23]

} {

[%emt 00:00:20]

} 5. g3 {

[%clk 01:27:39]

} {

[%emt 00:02:43]

} c6 {

[%clk 01:18:40]

} {

[%emt 00:01:12]

} 6. Bg2 {

[%clk 01:27:46]

} {

[%emt 00:00:23]

} Be7 {

[%clk 01:13:29]

} {

[%emt 00:05:40]

} 7. O-O {

[%clk 01:27:00]

} {

[%emt 00:01:17]

} O-O {

[%clk 01:12:26]

} {

[%emt 00:01:32]

} 8. e4 {

[%clk 01:27:19]

} {

[%emt 00:00:11]

} Qc7 {

[%clk 01:03:14]

} {

[%emt 00:09:42]

} 9. h3 {

[%clk 01:26:42]

} {

[%emt 00:01:06]

} Re8 {

[%clk 01:02:17]

} {

[%emt 00:01:26]

} 10. Be3 {

[%clk 01:26:23]

} {

[%emt 00:00:50]

} a5 {

[%clk 00:56:49]

} {

[%emt 00:05:58]

} 11. b3 {

[%clk 01:22:47]

} {

[%emt 00:04:06]

} b6 {

[%clk 00:47:33]

} {

[%emt 00:09:46]

} 12. Qc2 {

[%clk 01:12:15]

} {

[%emt 00:11:02]

} Ba6 {

[%clk 00:44:42]

} {

[%emt 00:03:20]

} 13. Rfe1 {

[%clk 01:08:02]

} {

[%emt 00:04:43]

} b5 {

[%clk 00:38:36]

} {

[%emt 00:06:36]

} 14. Nd2 {

[%clk 01:05:56]

} {

[%emt 00:02:37]

} b4 {

[%clk 00:32:11]

} {

[%emt 00:06:55]

} 15. Na4 {

[%clk 01:00:12]

} {

[%emt 00:06:14]

} c5 {

[%clk 00:32:00]

} {

[%emt 00:00:41]

} 16. d5 {

[%clk 00:56:30]

} {

[%emt 00:04:13]

} Nf8 {

[%clk 00:26:21]

} {

[%emt 00:06:09]

} 17. f4 {

[%clk 00:54:23]

} {

[%emt 00:02:36]

} Nh5 {

[%clk 00:24:23]

} {

[%emt 00:02:27]

} 18. Qd1 {

[%clk 00:49:55]

} {

[%emt 00:04:58]

} g6 {

[%clk 00:19:23]

} {

[%emt 00:05:31]

} 19. fxe5 {

[%clk 00:45:38]

} {

[%emt 00:04:47]

} dxe5 {

[%clk 00:18:48]

} {

[%emt 00:01:04]

} 20. Qf3 {

[%clk 00:45:44]

} {

[%emt 00:00:25]

} Bd6 {

[%clk 00:18:06]

} {

[%emt 00:01:12]

} 21. Rf1 {

[%clk 00:44:42]

} {

[%emt 00:01:31]

} f6 {

[%clk 00:12:12]

} {

[%emt 00:06:24]

} 22. Qf2 {

[%clk 00:43:30]

} {

[%emt 00:01:43]

} Nd7 {

[%clk 00:10:24]

} {

[%emt 00:02:17]

} 23. Bf3 {

[%clk 00:39:15]

} {

[%emt 00:04:46]

} Nf4 {

[%clk 00:09:38]

} {

[%emt 00:01:16]

} 24. Qh2 {

[%clk 00:33:11]

} {

[%emt 00:06:34]

} Nh5 {

[%clk 00:03:47]

} {

[%emt 00:06:21]

} 25. Bxh5 {

[%clk 00:33:37]

} {

[%emt 00:00:05]

} gxh5 {

[%clk 00:04:13]

} {

[%emt 00:00:04]

} 26. Qe2 {

[%clk 00:34:04]

} {

[%emt 00:00:02]

} Re7 {

[%clk 00:03:28]

} {

[%emt 00:01:14]

} 27. Qxh5 {

[%clk 00:33:55]

} {

[%emt 00:00:39]

} Rg7 {

[%clk 00:03:36]

} {

[%emt 00:00:23]

} 28. Kh2 {

[%clk 00:33:14]

} {

[%emt 00:01:11]

} Bc8 {

[%clk 00:03:41]

} {

[%emt 00:00:25]

} 29. Rf2 {

[%clk 00:31:54]

} {

[%emt 00:01:49]

} Rg6 {

[%clk 00:03:27]

} {

[%emt 00:00:44]

} 30. Raf1 {

[%clk 00:31:00]

} {

[%emt 00:01:24]

} Be7 {

[%clk 00:03:17]

} {

[%emt 00:00:39]

} 31. Nf3 {

[%clk 00:28:19]

} {

[%emt 00:03:11]

} f5 {

[%clk 00:02:01]

} {

[%emt 00:01:46]

} 32. Ng5 {

[%clk 00:20:12]

} {

[%emt 00:08:36]

} Nf6 {

[%clk 00:02:17]

} {

[%emt 00:00:15]

} 33. Qd1 {

[%clk 00:14:21]

} {

[%emt 00:06:20]

} h6 {

[%clk 00:01:56]

} {

[%emt 00:00:52]

} 34. Ne6 {

[%clk 00:14:17]

} {

[%emt 00:00:34]

} Bxe6 {

[%clk 00:02:01]

} {

[%emt 00:00:25]

} 35. exf5 {

[%clk 00:14:43]

} {

[%emt 00:00:04]

} Bxf5 {

[%clk 00:01:07]

} {

[%emt 00:01:25]

} 36. Rxf5 {

[%clk 00:15:12]

} Kg7 {

[%clk 00:01:11]

} {

[%emt 00:00:26]

} 37. d6 {

[%clk 00:13:13]

} {

[%emt 00:02:29]

} Qxd6 {

[%clk 00:00:46]

} {

[%emt 00:00:54]

} 38. Qxd6 {

[%clk 00:12:58]

} {

[%emt 00:00:45]

} Bxd6 {

[%clk 00:01:14]

} {

[%emt 00:00:01]

} 39. Bxc5 {

[%clk 00:13:15]

} {

[%emt 00:00:14]

} Bc7 {

[%clk 00:01:13]

} {

[%emt 00:00:31]

} 40. Be7 {

[%clk 00:22:40]

} {

[%emt 00:06:05]

} Ne4 {

[%clk 00:16:07]

} {

[%emt 00:00:36]

} 41. Bh4 {

[%clk 00:21:59]

} {

[%emt 00:01:11]

} Bd8 {

[%clk 00:09:16]

} {

[%emt 00:07:21]

} 42. Rxe5 {

[%clk 00:18:30]

} {

[%emt 00:03:58]

} Bxh4 {

[%clk 00:03:59]

} {

[%emt 00:05:48]

} 43. gxh4 {

[%clk 00:18:59]

} {

[%emt 00:00:02]

} Ng3 {

[%clk 00:01:51]

} {

[%emt 00:02:38]

} 44. Rf2 {

[%clk 00:13:13]

} {

[%emt 00:06:16]

} Rd8 {

[%clk 00:02:00]

} {

[%emt 00:00:21]

} 45. h5 {

[%clk 00:11:37]

} {

[%emt 00:02:06]

} Nf1+ {

[%clk 00:00:50]

} {

[%emt 00:01:40]

} 46. Rxf1 {

[%clk 00:11:59]

} {

[%emt 00:00:08]

} Rd2+ {

[%clk 00:01:06]

} {

[%emt 00:00:15]

} 47. Kh1 {

[%clk 00:12:28]

} 1-0

[Event "Estonian Chess Championship 2022"]
[Site "Tallinn, Paul Keres Chess House, Estonia"]
[Date "2022.12.10"]
[Round "1.3"]
[White "Seeman, Tarvo"]
[Black "Timoshin, Andrei"]
[Result "1/2-1/2"]
[TimeControl "90 minutes for first 40 moves and 15 min. for the rest of the game with 30 sec. increment from move 1"]
[WhiteTitle "IM"]
[WhiteFideId "4500547"]
[BlackFideId "4503503"]
[WhiteElo "2405"]
[BlackElo "2179"]

1. Nf3 {

[%clk 01:30:51]

} {

[%emt 00:00:08]

} d5 {

[%clk 01:29:45]

} {

[%emt 00:01:16]

} 2. g3 {

[%clk 01:30:48]

} {

[%emt 00:00:32]

} g6 {

[%clk 01:29:53]

} {

[%emt 00:00:22]

} 3. Bg2 {

[%clk 01:30:53]

} {

[%emt 00:00:24]

} Bg7 {

[%clk 01:30:16]

} {

[%emt 00:00:08]

} 4. d4 {

[%clk 01:30:55]

} {

[%emt 00:00:27]

} Nf6 {

[%clk 01:30:26]

} {

[%emt 00:00:21]

} 5. O-O {

[%clk 01:31:17]

} {

[%emt 00:00:08]

} O-O {

[%clk 01:29:48]

} {

[%emt 00:01:08]

} 6. c4 {

[%clk 01:31:35]

} {

[%emt 00:00:12]

} c6 {

[%clk 01:29:51]

} {

[%emt 00:00:27]

} 7. cxd5 {

[%clk 01:31:59]

} {

[%emt 00:00:06]

} cxd5 {

[%clk 01:30:07]

} {

[%emt 00:00:14]

} 8. Nc3 {

[%clk 01:32:23]

} {

[%emt 00:00:05]

} Ne4 {

[%clk 01:13:32]

} {

[%emt 00:17:05]

} 9. Ne5 {

[%clk 01:30:45]

} {

[%emt 00:02:08]

} Nxc3 {

[%clk 01:09:59]

} {

[%emt 00:04:04]

} 10. bxc3 {

[%clk 01:31:08]

} {

[%emt 00:00:06]

} Nc6 {

[%clk 01:09:07]

} {

[%emt 00:01:22]

} 11. Nxc6 {

[%clk 01:31:29]

} {

[%emt 00:00:10]

} bxc6 {

[%clk 01:09:36]

} {

[%emt 00:00:01]

} 12. Qa4 {

[%clk 01:31:46]

} {

[%emt 00:00:12]

} Bd7 {

[%clk 01:09:01]

} {

[%emt 00:01:05]

} 13. Qa3 {

[%clk 01:26:55]

} {

[%emt 00:05:20]

} e5 {

[%clk 01:07:29]

} {

[%emt 00:02:03]

} 14. dxe5 {

[%clk 01:20:52]

} {

[%emt 00:06:33]

} Bxe5 {

[%clk 01:07:55]

} {

[%emt 00:00:03]

} 15. Be3 {

[%clk 01:21:00]

} {

[%emt 00:00:21]

} Qf6 {

[%clk 00:50:00]

} {

[%emt 00:18:25]

} 16. Rac1 {

[%clk 01:20:58]

} {

[%emt 00:00:33]

} Rfe8 {

[%clk 00:46:22]

} {

[%emt 00:04:08]

} 17. Bc5 {

[%clk 01:12:12]

} {

[%emt 00:09:15]

} h5 {

[%clk 00:42:49]

} {

[%emt 00:04:04]

} 18. h4 {

[%clk 01:11:41]

} {

[%emt 00:00:59]

} Bg4 {

[%clk 00:37:11]

} {

[%emt 00:06:09]

} 19. Rfe1 {

[%clk 01:10:59]

} {

[%emt 00:01:11]

} Bc7 {

[%clk 00:35:14]

} {

[%emt 00:02:28]

} 20. e3 {

[%clk 01:06:15]

} {

[%emt 00:05:14]

} Bf3 {

[%clk 00:35:05]

} {

[%emt 00:00:39]

} 21. Bd4 {

[%clk 00:58:51]

} {

[%emt 00:07:53]

} Qf5 {

[%clk 00:35:03]

} {

[%emt 00:00:33]

} 22. Qa4 {

[%clk 00:56:47]

} {

[%emt 00:02:33]

} Bxg2 {

[%clk 00:17:12]

} {

[%emt 00:18:22]

} 23. Kxg2 {

[%clk 00:57:12]

} {

[%emt 00:00:05]

} Qe4+ {

[%clk 00:17:32]

} {

[%emt 00:00:11]

} 24. f3 {

[%clk 00:57:19]

} {

[%emt 00:00:22]

} Qe6 {

[%clk 00:18:00]

} {

[%emt 00:00:03]

} 25. e4 {

[%clk 00:57:29]

} {

[%emt 00:00:19]

} dxe4 {

[%clk 00:17:29]

} {

[%emt 00:01:03]

} 26. Rxe4 {

[%clk 00:57:45]

} {

[%emt 00:00:13]

} Qd6 {

[%clk 00:17:57]

} {

[%emt 00:00:03]

} 27. Bf2 {

[%clk 00:57:59]

} {

[%emt 00:00:15]

} Rxe4 {

[%clk 00:16:28]

} {

[%emt 00:02:00]

} 28. Qxe4 {

[%clk 00:55:41]

} {

[%emt 00:02:46]

} Bb6 {

[%clk 00:14:31]

} {

[%emt 00:02:29]

} 29. Rc2 {

[%clk 00:54:53]

} {

[%emt 00:01:16]

} Rd8 {

[%clk 00:13:00]

} {

[%emt 00:02:02]

} 30. Re2 {

[%clk 00:47:49]

} {

[%emt 00:07:33]

} Qd1 {

[%clk 00:13:16]

} {

[%emt 00:00:16]

} 31. Bxb6 {

[%clk 00:41:54]

} {

[%emt 00:06:26]

} axb6 {

[%clk 00:13:42]

} {

[%emt 00:00:04]

} 32. Qc2 {

[%clk 00:42:13]

} {

[%emt 00:00:10]

} 1/2-1/2

[Event "Estonian Chess Championship 2022"]
[Site "Tallinn, Paul Keres Chess House, Estonia"]
[Date "2022.12.10"]
[Round "1.4"]
[White "Rychagov, Nikita"]
[Black "Soot, Margus"]
[Result "1-0"]
[TimeControl "90 minutes for first 40 moves and 15 min. for the rest of the game with 30 sec. increment from move 1"]
[WhiteFideId "4508394"]
[BlackFideId "4501160"]
[WhiteElo "2180"]
[BlackElo "2121"]

1. e4 {

[%clk 01:30:58]

} {

[%emt 00:00:02]

} c5 {

[%clk 01:30:56]

} {

[%emt 00:00:05]

} 2. Nf3 {

[%clk 01:31:24]

} {

[%emt 00:00:04]

} e6 {

[%clk 01:31:19]

} {

[%emt 00:00:06]

} 3. d4 {

[%clk 01:31:51]

} {

[%emt 00:00:04]

} cxd4 {

[%clk 01:31:46]

} {

[%emt 00:00:03]

} 4. Nxd4 {

[%clk 01:32:15]

} {

[%emt 00:00:05]

} Nf6 {

[%clk 01:32:07]

} {

[%emt 00:00:09]

} 5. Nc3 {

[%clk 01:32:40]

} {

[%emt 00:00:06]

} Nc6 {

[%clk 01:31:28]

} {

[%emt 00:01:09]

} 6. Ndb5 {

[%clk 01:32:07]

} {

[%emt 00:01:02]

} d6 {

[%clk 01:31:39]

} {

[%emt 00:00:19]

} 7. Bf4 {

[%clk 01:32:31]

} {

[%emt 00:00:07]

} e5 {

[%clk 01:31:43]

} {

[%emt 00:00:26]

} 8. Bg5 {

[%clk 01:32:57]

} {

[%emt 00:00:04]

} a6 {

[%clk 01:31:44]

} {

[%emt 00:00:28]

} 9. Na3 {

[%clk 01:33:21]

} {

[%emt 00:00:05]

} Be7 {

[%clk 01:27:22]

} {

[%emt 00:04:52]

} 10. Nc4 {

[%clk 01:25:48]

} {

[%emt 00:08:04]

} Nd4 {

[%clk 01:17:20]

} {

[%emt 00:10:31]

} 11. Bxf6 {

[%clk 01:24:51]

} {

[%emt 00:01:28]

} gxf6 {

[%clk 01:11:29]

} {

[%emt 00:06:21]

} 12. Nd5 {

[%clk 01:11:19]

} {

[%emt 00:14:02]

} Be6 {

[%clk 01:03:56]

} {

[%emt 00:08:03]

} 13. c3 {

[%clk 01:09:02]

} {

[%emt 00:02:46]

} Nc6 {

[%clk 01:01:06]

} {

[%emt 00:03:19]

} 14. Nce3 {

[%clk 01:07:55]

} {

[%emt 00:01:39]

} O-O {

[%clk 00:59:25]

} {

[%emt 00:02:10]

} 15. Bd3 {

[%clk 01:06:36]

} {

[%emt 00:01:48]

} Kh8 {

[%clk 00:59:23]

} {

[%emt 00:00:33]

} 16. Qf3 {

[%clk 01:05:08]

} {

[%emt 00:01:58]

} Rg8 {

[%clk 00:58:27]

} {

[%emt 00:01:26]

} 17. g3 {

[%clk 00:56:07]

} {

[%emt 00:09:32]

} Rc8 {

[%clk 00:56:48]

} {

[%emt 00:02:09]

} 18. h4 {

[%clk 00:52:37]

} {

[%emt 00:03:59]

} Nb8 {

[%clk 00:51:29]

} {

[%emt 00:05:48]

} 19. Bf1 {

[%clk 00:46:27]

} {

[%emt 00:06:40]

} Nd7 {

[%clk 00:50:36]

} {

[%emt 00:01:23]

} 20. Bh3 {

[%clk 00:46:14]

} {

[%emt 00:00:43]

} Nb6 {

[%clk 00:50:48]

} {

[%emt 00:00:18]

} 21. O-O-O {

[%clk 00:39:12]

} {

[%emt 00:07:32]

} Rc5 {

[%clk 00:41:05]

} {

[%emt 00:10:13]

} 22. Bf5 {

[%clk 00:34:47]

} {

[%emt 00:04:56]

} Nc4 {

[%clk 00:37:52]

} {

[%emt 00:03:43]

} 23. Nxc4 {

[%clk 00:32:36]

} {

[%emt 00:02:42]

} Rxc4 {

[%clk 00:35:54]

} {

[%emt 00:02:28]

} 24. Rd2 {

[%clk 00:21:22]

} {

[%emt 00:11:43]

} Bxd5 {

[%clk 00:34:26]

} {

[%emt 00:01:57]

} 25. Rxd5 {

[%clk 00:21:37]

} {

[%emt 00:00:15]

} Rc6 {

[%clk 00:33:56]

} {

[%emt 00:01:00]

} 26. Rhd1 {

[%clk 00:21:51]

} {

[%emt 00:00:16]

} Qc7 {

[%clk 00:34:09]

} {

[%emt 00:00:18]

} 27. Kb1 {

[%clk 00:22:12]

} {

[%emt 00:00:09]

} b5 {

[%clk 00:34:14]

} {

[%emt 00:00:25]

} 28. Qh5 {

[%clk 00:20:59]

} {

[%emt 00:01:42]

} Rg7 {

[%clk 00:34:42]

} {

[%emt 00:00:02]

} 29. R5d3 {

[%clk 00:20:30]

} {

[%emt 00:00:59]

} a5 {

[%clk 00:34:49]

} {

[%emt 00:00:24]

} 30. Rd5 {

[%clk 00:20:34]

} {

[%emt 00:00:26]

} Rc5 {

[%clk 00:34:30]

} {

[%emt 00:00:49]

} 31. Qe2 {

[%clk 00:20:46]

} {

[%emt 00:00:18]

} b4 {

[%clk 00:34:06]

} {

[%emt 00:00:54]

} 32. cxb4 {

[%clk 00:20:51]

} {

[%emt 00:00:25]

} axb4 {

[%clk 00:34:35]

} {

[%emt 00:00:02]

} 33. Rxc5 {

[%clk 00:20:58]

} {

[%emt 00:00:23]

} Qxc5 {

[%clk 00:35:03]

} {

[%emt 00:00:01]

} 34. Rc1 {

[%clk 00:16:08]

} {

[%emt 00:05:19]

} Qb6 {

[%clk 00:35:32]

} {

[%emt 00:00:01]

} 35. Rc8+ {

[%clk 00:16:06]

} {

[%emt 00:00:32]

} Bd8 {

[%clk 00:36:01]

} {

[%emt 00:00:02]

} 36. Qe3 {

[%clk 00:15:59]

} {

[%emt 00:00:37]

} Qa5 {

[%clk 00:35:17]

} {

[%emt 00:01:14]

} 37. b3 {

[%clk 00:13:28]

} {

[%emt 00:03:01]

} d5 {

[%clk 00:34:02]

} {

[%emt 00:01:44]

} 38. Qh6 {

[%clk 00:12:59]

} {

[%emt 00:00:59]

} Qb6 {

[%clk 00:34:19]

} {

[%emt 00:00:14]

} 39. exd5 {

[%clk 00:12:53]

} {

[%emt 00:00:35]

} Qd6 {

[%clk 00:34:48]

} 40. Qd2 {

[%clk 00:25:32]

} {

[%emt 00:02:52]

} e4 {

[%clk 00:49:38]

} {

[%emt 00:00:41]

} 41. Bxe4 {

[%clk 00:22:49]

} {

[%emt 00:03:13]

} Qd7 {

[%clk 00:49:45]

} {

[%emt 00:00:23]

} 42. Qc2 {

[%clk 00:21:47]

} {

[%emt 00:01:31]

} Rg8 {

[%clk 00:49:43]

} {

[%emt 00:00:31]

} 43. Qc6 {

[%clk 00:21:01]

} {

[%emt 00:01:17]

} Qe7 {

[%clk 00:49:56]

} {

[%emt 00:00:18]

} 44. d6 {

[%clk 00:20:53]

} {

[%emt 00:00:38]

} Qe6 {

[%clk 00:49:55]

} {

[%emt 00:00:31]

} 45. d7 {

[%clk 00:21:04]

} {

[%emt 00:00:19]

} Qe7 {

[%clk 00:46:38]

} {

[%emt 00:03:46]

} 46. Qd5 {

[%clk 00:21:07]

} {

[%emt 00:00:28]

} Rg4 {

[%clk 00:46:47]

} {

[%emt 00:00:21]

} 47. Bxh7 {

[%clk 00:16:47]

} {

[%emt 00:04:50]

} Qe1+ {

[%clk 00:45:40]

} {

[%emt 00:01:37]

} 48. Rc1 {

[%clk 00:17:12]

} {

[%emt 00:00:05]

} Qxf2 {

[%clk 00:45:51]

} {

[%emt 00:00:19]

} 49. Qh5 {

[%clk 00:15:40]

} {

[%emt 00:02:02]

} Rg7 {

[%clk 00:45:17]

} {

[%emt 00:01:04]

} 50. Be4+ {

[%clk 00:14:41]

} {

[%emt 00:01:28]

} Kg8 {

[%clk 00:45:45]

} {

[%emt 00:00:01]

} 51. Qa5 {

[%clk 00:13:44]

} {

[%emt 00:01:27]

} Bxa5 {

[%clk 00:44:51]

} {

[%emt 00:01:24]

} 52. Rc8+ {

[%clk 00:14:10]

} {

[%emt 00:00:04]

} Bd8 {

[%clk 00:45:16]

} {

[%emt 00:00:04]

} 53. Rxd8# {

[%clk 00:14:36]

} {

[%emt 00:00:04]

} 1-0